fUSD/lending_fUSD_20250606
["ID","MTS","AMOUNT","RATE_DAILY","PERIOD"]
[364746759,1749227459963,-216.821142,0.00029886,7]
[364746760,1749227459972,-151.0,0.00029886,7]
[364746761,1749227459982,-151.0,0.00029886,7]
[364746762,1749227459991,-151.0,0.00029886,7]
[364746763,1749227460001,-151.0,0.00029886,7]
[364746764,1749227460010,-151.0,0.00029886,7]
[364746765,1749227460019,-389.90276,0.00029886,7]
[364746766,1749227460028,-389.90276,0.00029886,7]
[364746767,1749227460038,-516.62105,0.00029886,7]
[364746768,1749227460047,-516.62105,0.00029886,7]
[364746769,1749227460057,-151.0,0.00029886,7]
[364746770,1749227460067,-151.0,0.00029886,7]
[364746771,1749227460077,-151.0,0.00029886,7]
[364746772,1749227460086,-151.0,0.00029886,7]
[364746773,1749227460096,-151.0,0.00029886,7]
[364746774,1749227460105,-213.858254,0.00029886,7]
[364746775,1749227460115,-213.858254,0.00029886,7]
[364746776,1749227460124,-164.656632,0.00029886,7]
[364746777,1749227460133,-202.911024,0.00029886,7]
[364746778,1749227460143,-202.911024,0.00029886,7]
[364746779,1749227460153,-8912.594129,0.00029886,7]
[364746780,1749227460163,-151.0,0.00029886,7]
[364746781,1749227460172,-151.0,0.00029886,7]
[364746782,1749227460181,-222.603591,0.00029886,7]
[364746783,1749227460191,-222.603591,0.00029886,7]
[364746784,1749227460200,-151.0,0.00029886,7]
[364746785,1749227460210,-151.0,0.00029886,7]
[364746786,1749227460219,-151.0,0.00029887,7]
[364746787,1749227460228,-151.0,0.00029887,7]
[364746788,1749227460238,-151.0,0.00029887,7]
[364746789,1749227460247,-152.209339,0.00029887,7]
[364746790,1749227460257,-151.0,0.00029887,7]
[364746791,1749227460267,-151.0,0.00029887,7]
[364746792,1749227460277,-151.0,0.00029887,7]
[364746793,1749227460286,-151.0,0.00029887,7]
[364746794,1749227460296,-151.0,0.00029887,7]
[364746795,1749227460305,-151.0,0.00029887,7]
[364746796,1749227460315,-151.0,0.00029887,7]
[364746797,1749227460324,-151.0,0.00029887,7]
[364746798,1749227460333,-151.0,0.00029887,7]
[364746799,1749227460342,-151.0,0.00029887,7]
[364746800,1749227460351,-151.0,0.00029887,7]
[364746801,1749227460361,-151.0,0.00029887,7]
[364746802,1749227460371,-151.0,0.00029887,7]
[364746803,1749227460381,-151.0,0.00029887,7]
[364746804,1749227460390,-151.0,0.00029887,7]
[364746805,1749227460399,-151.0,0.00029887,7]
[364746806,1749227460408,-151.0,0.00029887,7]
[364746807,1749227460417,-151.0,0.00029887,7]
[364746808,1749227460427,-151.0,0.00029887,7]
[364746809,1749227460436,-151.0,0.00029887,7]
[364746810,1749227460447,-152.238814,0.00029887,7]
[364746811,1749227460457,-151.0,0.00029887,7]
[364746812,1749227460466,-151.0,0.00029887,7]
[364746813,1749227460474,-151.0,0.00029887,7]
[364746814,1749227460483,-203.078254,0.00029887,7]
[364746815,1749227460492,-203.078254,0.00029887,7]
[364746816,1749227460501,-203.078254,0.00029887,7]
[364746817,1749227460510,-203.078254,0.00029887,7]
[364746818,1749227460519,-151.0,0.00029887,7]
[364746819,1749227460529,-151.0,0.00029887,7]
[364746820,1749227460538,-151.0,0.00029887,7]
[364746821,1749227460548,-151.0,0.00029887,7]
[364746822,1749227460558,-163.855496,0.00029887,7]
[364746823,1749227460567,-151.0,0.00029887,7]
[364746824,1749227460576,-163.855496,0.00029887,7]
[364746825,1749227460586,-151.0,0.00029887,7]
[364746826,1749227460596,-151.0,0.00029887,7]
[364746827,1749227460606,-151.0,0.00029887,7]
[364746828,1749227460616,-151.0,0.00029887,7]
[364746829,1749227460625,-151.0,0.00029887,7]
[364746830,1749227460636,-151.0,0.00029887,7]
[364746831,1749227460646,-151.0,0.00029887,7]
[364746832,1749227460657,-151.0,0.00029887,7]
[364746833,1749227460666,-151.0,0.00029887,7]
[364746834,1749227460676,-419.66650846,0.00029888,2]
[364746835,1749227460686,-151.0,0.00029888,7]
[364746836,1749227460695,-151.0,0.00029888,7]
[364746837,1749227460705,-151.0,0.00029888,7]
[364746838,1749227460714,-170.730005,0.00029888,7]
[364746839,1749227460724,-151.0,0.00029888,7]
[364746840,1749227460735,-1370.0,0.00029889,2]
[364746841,1749227460744,-1370.0,0.00029889,2]
[364746842,1749227460753,-1370.0,0.00029889,2]
[364746843,1749227460763,-1370.0,0.00029889,2]
[364746844,1749227460772,-1370.0,0.00029889,2]
[364746845,1749227460781,-1370.0,0.00029889,2]
[364746846,1749227460790,-1370.0,0.00029889,2]
[364746847,1749227460800,-1370.0,0.00029889,2]
[364746848,1749227460812,-1370.0,0.00029889,2]
[364746849,1749227460821,-1370.0,0.00029889,2]
[364746850,1749227460831,-151.0,0.00029889,7]
[364746851,1749227460840,-151.0,0.00029889,7]
[364746852,1749227460850,-285.82018,0.00029889,7]
[364746853,1749227460859,-151.0,0.00029889,7]
[364746854,1749227460869,-234.182485,0.00029889,7]
[364746855,1749227460878,-234.182485,0.00029889,7]
[364746856,1749227460888,-178.151961,0.00029889,7]
[364746857,1749227460898,-280.057545,0.00029889,7]
[364746858,1749227460908,-280.057545,0.00029889,7]
[364746859,1749227460917,-151.0,0.00029889,7]
[364746860,1749227460926,-151.0,0.00029889,7]
[364746861,1749227460936,-389.90276,0.00029889,7]
[364746862,1749227460945,-389.90276,0.00029889,7]
[364746863,1749227460954,-516.62105,0.00029889,7]
[364746864,1749227460963,-516.62105,0.00029889,7]
[364746865,1749227460973,-202.911024,0.00029889,7]
[364746866,1749227460983,-202.911024,0.00029889,7]
[364746867,1749227460991,-151.0,0.00029889,7]
[364746868,1749227461001,-1052.544835,0.00029889,7]
[364746869,1749227461010,-1052.544835,0.00029889,7]
[364746870,1749227461021,-192.56007,0.00029889,7]
[364746871,1749227461032,-192.56007,0.00029889,7]
[364746872,1749227461046,-511.37912,0.00029889,7]
[364746873,1749227461060,-511.37912,0.00029889,7]
[364746874,1749227461071,-244.578444,0.00029889,7]
[364746875,1749227461082,-151.0,0.00029889,7]
[364746876,1749227461090,-1489.661916,0.00029889,7]
[364746877,1749227461100,-151.0,0.00029889,7]
[364746878,1749227461110,-244.578444,0.00029889,7]
[364746879,1749227461119,-1489.661916,0.00029889,7]
[364746880,1749227461128,-151.0,0.00029889,7]
[364746881,1749227461137,-151.0,0.00029889,7]
[364746882,1749227461146,-154.34736332,0.0002989,30]
[364746883,1749227461155,-151.0,0.00029898,7]
[364746884,1749227461164,-151.0,0.00029898,7]
[364746885,1749227461174,-4667.01,0.000299,2]
[364746886,1749227461183,-151.0,0.000299,7]
[364746887,1749227461192,-151.0,0.000299,7]
[364746888,1749227461202,-151.0,0.000299,7]
[364746889,1749227461212,-151.0,0.000299,7]
[364746890,1749227461222,-151.0,0.000299,7]
[364746891,1749227461231,-151.0,0.000299,7]
[364746892,1749227461241,-438.609149,0.000299,7]
[364746893,1749227461250,-438.609149,0.000299,7]
[364746894,1749227461260,-150.80667436,0.000299,2]
[364746895,1749227461270,-150.80667436,0.000299,2]
[364746896,1749227461279,-150.80667436,0.000299,2]
[364746897,1749227461288,-150.80667436,0.000299,2]
[364746898,1749227461298,-150.80667436,0.000299,2]
[364746899,1749227461308,-150.80667436,0.000299,2]
[364746900,1749227461318,-150.80667436,0.000299,2]
[364746901,1749227461327,-150.80667436,0.000299,2]
[364746902,1749227461337,-150.80667436,0.000299,2]
[364746903,1749227461346,-150.80667436,0.000299,2]
[364746904,1749227461355,-150.80667436,0.000299,2]
[364746905,1749227461368,-201.13770715,0.000299,21]
[364746906,1749227461377,-150.80667436,0.000299,2]
[364746907,1749227461387,-150.80667436,0.000299,2]
[364746908,1749227461396,-150.80667436,0.000299,2]
[364746909,1749227461406,-150.80667436,0.000299,2]
[364746910,1749227461416,-150.80667436,0.000299,2]
[364746911,1749227461425,-2818.69,0.000299,2]
[364746912,1749227461435,-328.0,0.00029902,5]
[364746913,1749227461444,-151.0,0.00029915,7]
[364746914,1749227461454,-151.0,0.00029915,7]
[364746915,1749227461464,-151.0,0.00029915,7]
[364746916,1749227461474,-8912.594129,0.00029915,7]
[364746917,1749227461483,-3588.55519907,0.00029921,2]
[364746918,1749227461492,-200.0,0.00029922,2]
[364746919,1749227461502,-151.0,0.00029952,7]
[364746920,1749227461512,-151.0,0.00029952,7]
[364746921,1749227461522,-150.0,0.00029981,2]
[364746922,1749227461532,-151.674937,0.00029988,7]
[364746923,1749227461541,-480.0,0.00029988,5]
[364746924,1749227461550,-718.82,0.00029988,5]
[364746925,1749227461559,-1521.37,0.00029988,5]
[364746926,1749227461569,-480.0,0.00029988,5]
[364746927,1749227461578,-1362.09,0.00029988,5]
[364746928,1749227461587,-1701.6,0.00029988,5]
[364746929,1749227461597,-1017.03,0.00029988,5]
[364746930,1749227461607,-573.7,0.00029988,5]
[364746931,1749227461618,-1869.1,0.00029988,5]
[364746932,1749227461630,-742.15,0.00029988,5]
[364746933,1749227461641,-4387.12,0.00029988,5]
[364746934,1749227461650,-1432.56,0.00029988,5]
[364746935,1749227461659,-480.0,0.00029988,5]
[364746936,1749227461668,-889.47,0.00029988,5]
[364746937,1749227461678,-3114.45,0.00029997,7]
[364746938,1749227461688,-899.9,0.00029998,5]
[364746939,1749227461698,-480.0,0.00029998,5]
[364746940,1749227461707,-480.0,0.00029998,5]
[364746941,1749227461717,-480.0,0.00029998,5]
[364746942,1749227461726,-496.21,0.00029998,5]
[364746943,1749227461736,-480.0,0.00029998,5]
[364746944,1749227461745,-395.96491286,0.00029998,5]
[364746945,1749227461755,-480.0,0.00029998,5]
[364746946,1749227461765,-480.0,0.00029998,5]
[364746947,1749227461775,-480.0,0.00029998,5]
[364746948,1749227461784,-480.0,0.00029998,5]
[364746949,1749227461793,-480.0,0.00029998,5]
[364746950,1749227461803,-480.0,0.00029998,5]
[364746951,1749227461817,-480.0,0.00029998,5]
[364746952,1749227461826,-480.0,0.00029998,5]
[364746953,1749227461836,-480.0,0.00029998,5]
[364746954,1749227461846,-514.39,0.00029998,5]
[364746955,1749227461857,-245.10404391,0.00029998,5]
[364746956,1749227461868,-480.0,0.00029998,5]
[364746957,1749227461878,-602.08,0.00029998,5]
[364746958,1749227461888,-778.91,0.00029998,5]
[364746959,1749227461898,-942.67,0.00029998,5]
[364746960,1749227461908,-1093.12,0.00029998,5]
[364746961,1749227461918,-480.0,0.00029998,5]
[364746962,1749227461928,-483.5,0.00029998,5]
[364746963,1749227461939,-616.99,0.00029998,5]
[364746964,1749227461948,-480.0,0.00029998,5]
[364746965,1749227461959,-604.38,0.00029998,5]
[364746966,1749227461969,-480.0,0.00029998,5]
[364746967,1749227461979,-752.61,0.00029998,5]
[364746968,1749227461988,-480.0,0.00029998,5]
[364746969,1749227461997,-480.0,0.00029998,5]
[364746970,1749227462008,-517.27,0.00029998,5]
[364746971,1749227462017,-480.0,0.00029998,5]
[364746972,1749227462026,-660.66,0.00029998,5]
[364746973,1749227462036,-1167.43,0.00029998,5]
[364746974,1749227462046,-480.0,0.00029998,5]
[364746975,1749227462055,-480.0,0.00029998,5]
[364746976,1749227462065,-480.0,0.00029998,5]
[364746977,1749227462074,-480.0,0.00029998,5]
[364746978,1749227462084,-480.0,0.00029998,5]
[364746979,1749227462094,-480.0,0.00029998,5]
[364746980,1749227462103,-480.0,0.00029998,5]
[364746981,1749227462113,-1242.39,0.00029998,5]
[364746982,1749227462123,-480.0,0.00029998,5]
[364746983,1749227462132,-719.98,0.00029998,5]
[364746984,1749227462141,-480.0,0.00029998,5]
[364746985,1749227462150,-151.0,0.00029998,7]
[364746986,1749227462160,-244.741036,0.00029998,7]
[364746987,1749227462169,-1683.43,0.00029998,5]
[364746988,1749227462180,-986.2,0.00029998,5]
[364746989,1749227462191,-492.17,0.00029998,5]
[364746990,1749227462200,-1089.77,0.00029998,5]
[364746991,1749227462211,-248.943433,0.00029998,7]
[364746992,1749227462220,-213.858254,0.00029998,7]
[364746993,1749227462230,-849.29,0.00029998,5]
[364746994,1749227462240,-213.858254,0.00029998,7]
[364746995,1749227462249,-480.0,0.00029998,5]
[364746996,1749227462259,-1140.16,0.00029998,5]
[364746997,1749227462269,-480.0,0.00029998,5]
[364746998,1749227462279,-672.69,0.00029998,5]
[364746999,1749227462288,-480.0,0.00029998,5]
[364747000,1749227462298,-962.41,0.00029998,5]
[364747001,1749227462307,-495.27808491,0.00029998,5]
[364747002,1749227462317,-480.0,0.00029998,5]
[364747003,1749227462326,-693.92,0.00029998,5]
[364747004,1749227462335,-1794.747295,0.00029998,5]
[364747005,1749227462345,-690.87,0.00029998,5]
[364747006,1749227462355,-480.0,0.00029998,5]
[364747007,1749227462365,-1070.56,0.00029998,5]
[364747008,1749227462375,-9465.44,0.00029998,5]
[364747009,1749227462384,-1610.06,0.00029998,5]
[364747010,1749227462394,-480.0,0.00029998,5]
[364747011,1749227462405,-73448.51,0.00029998,5]
[364747012,1749227462415,-1020.69,0.00029998,5]
[364747013,1749227462424,-3692.71,0.00029998,5]
[364747014,1749227462434,-1368.0,0.00029998,5]
[364747015,1749227462444,-480.0,0.00029998,5]
[364747016,1749227462453,-1150.85,0.00029998,5]
[364747017,1749227462463,-1896.103585,0.00029998,5]
[364747018,1749227462472,-480.0,0.00029998,5]
[364747019,1749227462482,-1280.22,0.00029998,5]
[364747020,1749227462491,-1356.53,0.00029998,5]
[364747021,1749227462501,-914.26,0.00029998,5]
[364747022,1749227462512,-480.0,0.00029998,5]
[364747023,1749227462521,-1493.12,0.00029998,5]
[364747024,1749227462531,-151.0,0.00029998,7]
[364747025,1749227462540,-480.0,0.00029998,5]
[364747026,1749227462550,-1953.69,0.00029998,5]
[364747027,1749227462559,-480.0,0.00029998,5]
[364747028,1749227462569,-492.14,0.00029998,5]
[364747029,1749227462579,-770.69,0.00029998,5]
[364747030,1749227462589,-651.17,0.00029998,5]
[364747031,1749227462598,-3716.38,0.00029998,5]
[364747032,1749227462608,-480.0,0.00029998,5]
[364747033,1749227462617,-2411.63,0.00029998,5]
[364747034,1749227462627,-498.68,0.00029998,5]
[364747035,1749227462637,-1000.0,0.00029998,2]
[364747036,1749227462647,-480.0,0.00029998,5]
[364747037,1749227462656,-395.09961983,0.00029998,5]
[364747038,1749227462666,-1391.28,0.00029998,5]
[364747039,1749227462675,-4869.05,0.00029998,5]
[364747040,1749227462685,-1028.21,0.00029998,5]
[364747041,1749227462695,-1940.38,0.00029998,5]
[364747042,1749227462705,-480.0,0.00029998,5]
[364747043,1749227462714,-3304.43,0.00029998,5]
[364747044,1749227462724,-1323.14,0.00029998,5]
[364747045,1749227462734,-1107.08,0.00029998,5]
[364747046,1749227462744,-222.603591,0.00029998,7]
[364747047,1749227462754,-222.603591,0.00029998,7]
[364747048,1749227462764,-1563.7,0.00029998,5]
[364747049,1749227462774,-1807.27,0.00029998,5]
[364747050,1749227462783,-480.0,0.00029998,5]
[364747051,1749227462793,-151.0,0.00029998,7]
[364747052,1749227462803,-5020.42,0.00029998,5]
[364747053,1749227462817,-1209.36,0.00029998,5]
[364747054,1749227462826,-3471.8,0.00029998,5]
[364747055,1749227462836,-192.56007,0.00029998,7]
[364747056,1749227462847,-480.0,0.00029998,5]
[364747057,1749227462857,-192.56007,0.00029998,7]
[364747058,1749227462867,-1414.46,0.00029998,5]
[364747059,1749227462877,-2190.57,0.00029998,5]
[364747060,1749227462888,-800.74,0.00029998,5]
[364747061,1749227462897,-480.0,0.00029998,5]
[364747062,1749227462907,-926.05,0.00029998,5]
[364747063,1749227462917,-1064.41,0.00029998,5]
[364747064,1749227462926,-480.0,0.00029998,5]
[364747065,1749227462936,-3312.09,0.00029998,5]
[364747066,1749227462945,-1585.13,0.00029998,5]
[364747067,1749227462955,-480.0,0.00029998,5]
[364747068,1749227462965,-1027.06,0.00029998,5]
[364747069,1749227462975,-480.0,0.00029998,5]
[364747070,1749227462985,-480.0,0.00029998,5]
[364747071,1749227462995,-10318.0,0.00029998,5]
[364747072,1749227463005,-2193.8,0.00029998,5]
[364747073,1749227463014,-435.2697659,0.00029998,5]
[364747074,1749227463024,-480.0,0.00029998,5]
[364747075,1749227463034,-748.18,0.00029998,5]
[364747076,1749227463044,-511.37912,0.00029998,7]
[364747077,1749227463053,-185.23991,0.00029998,5]
[364747078,1749227463063,-499.32,0.00029998,5]
[364747079,1749227463073,-511.37912,0.00029998,7]
[364747080,1749227463083,-626.17,0.00029998,5]
[364747081,1749227463094,-484.78,0.00029998,5]
[364747082,1749227463104,-480.0,0.00029998,5]
[364747083,1749227463114,-480.0,0.00029998,5]
[364747084,1749227463124,-2333.39,0.00029998,5]
[364747085,1749227463133,-2793.02,0.00029998,5]
[364747086,1749227463143,-480.0,0.00029998,5]
[364747087,1749227463153,-480.0,0.00029998,5]
[364747088,1749227463163,-480.0,0.00029998,5]
[364747089,1749227463173,-4622.42,0.00029998,5]
[364747090,1749227463184,-2090.29,0.00029998,5]
[364747091,1749227463194,-781.66,0.00029998,5]
[364747092,1749227463204,-244.578444,0.00029998,7]
[364747093,1749227463215,-1489.661916,0.00029998,7]
[364747094,1749227463226,-151.0,0.00029998,7]
[364747095,1749227463236,-480.0,0.00029998,5]
[364747096,1749227463247,-151.0,0.00029998,7]
[364747097,1749227463258,-244.578444,0.00029998,7]
[364747098,1749227463268,-1608.78,0.00029998,5]
[364747099,1749227463467,-1489.661916,0.00029998,7]
[364747100,1749227463479,-484.06,0.00029998,5]
[364747101,1749227463489,-151.0,0.00029998,7]
[364747102,1749227463499,-480.0,0.00029998,5]
[364747103,1749227463510,-1340.78,0.00029998,5]
[364747104,1749227463520,-731.94,0.00029998,5]
[364747105,1749227463530,-2052.89,0.00029998,5]
[364747106,1749227463540,-934.73,0.00029998,5]
[364747107,1749227463550,-950.85,0.00029998,5]
[364747108,1749227463560,-1137.5,0.00029998,5]
[364747109,1749227463570,-1902.15,0.00029998,5]
[364747110,1749227463580,-629.67,0.00029998,5]
[364747111,1749227463590,-153.134656,0.00029998,7]
[364747112,1749227463600,-480.0,0.00029998,5]
[364747113,1749227463610,-480.0,0.00029998,5]
[364747114,1749227463620,-607.58,0.00029998,5]
[364747115,1749227463629,-4122.08,0.00029998,5]
[364747116,1749227463639,-480.0,0.00029998,5]
[364747117,1749227463649,-2934.61,0.00029998,5]
[364747118,1749227463658,-480.0,0.00029998,5]
[364747119,1749227463668,-5801.37,0.00029998,5]
[364747120,1749227463678,-663.99,0.00029998,5]
[364747121,1749227463688,-480.0,0.00029998,5]
[364747122,1749227463698,-20866.89,0.00029998,5]
[364747123,1749227463708,-1043.81,0.00029998,5]
[364747124,1749227463717,-480.0,0.00029998,5]
[364747125,1749227463726,-3899.86,0.00029998,5]
[364747126,1749227463736,-763.68,0.00029998,5]
[364747127,1749227463746,-857.46,0.00029998,5]
[364747128,1749227463756,-7579.31,0.00029998,5]
[364747129,1749227463766,-2367.61,0.00029998,5]
[364747130,1749227463776,-480.0,0.00029998,5]
[364747131,1749227463786,-151.0,0.00029998,7]
[364747132,1749227463797,-480.0,0.00029998,5]
[364747133,1749227463807,-480.0,0.00029998,5]
[364747134,1749227463820,-480.0,0.00029998,5]
[364747135,1749227463830,-480.0,0.00029998,5]
[364747136,1749227463840,-2450.88,0.00029998,5]
[364747137,1749227463851,-13894.46,0.00029998,5]
[364747138,1749227463862,-480.0,0.00029998,5]
[364747139,1749227463871,-480.0,0.00029998,5]
[364747140,1749227463881,-480.0,0.00029998,5]
[364747141,1749227463890,-209.063,0.00029999,24]
[364747142,1749227463902,-2155.548,0.00029999,24]
[364747143,1749227463912,-18627.0,0.0003,2]
[364747144,1749227463922,-151.0,0.0003,7]
[364747145,1749227463932,-1052.544835,0.0003,7]
[364747146,1749227463942,-438.609149,0.0003,7]
[364747147,1749227463952,-1052.544835,0.0003,7]
[364747148,1749227463961,-438.609149,0.0003,7]
[364747149,1749227463971,-427.64118937,0.0003,2]
[364747150,1749227463982,-511.37912,0.0003,7]
[364747151,1749227463991,-511.379119,0.0003,7]
[364747152,1749227464000,-1489.661916,0.0003,7]
[364747153,1749227464011,-151.0,0.0003,7]
[364747154,1749227464020,-151.0,0.0003,7]
[364747155,1749227464030,-214.0,0.0003,2]
[364747156,1749227464039,-1489.661912,0.0003,7]
[364747157,1749227464049,-151.0,0.0003,7]
[364747158,1749227464058,-3114.45,0.00030008,7]
[364747159,1749227464068,-480.0,0.00030009,5]
[364747160,1749227464077,-211.41374949,0.00030009,5]
[364747161,1749227464087,-480.0,0.00030009,5]
[364747162,1749227464096,-480.0,0.00030009,5]
[364747163,1749227464105,-480.0,0.00030009,5]
[364747164,1749227464115,-480.0,0.00030009,5]
[364747165,1749227464124,-480.0,0.00030009,5]
[364747166,1749227464133,-480.0,0.00030009,5]
[364747167,1749227464142,-480.0,0.00030009,5]
[364747168,1749227464151,-480.0,0.00030009,5]
[364747169,1749227464161,-480.0,0.00030009,5]
[364747170,1749227464170,-480.0,0.00030009,5]
[364747171,1749227464179,-480.0,0.00030009,5]
[364747172,1749227464189,-459.61181471,0.00030009,5]
[364747173,1749227464199,-480.0,0.00030009,5]
[364747174,1749227464209,-480.0,0.00030009,5]
[364747175,1749227464218,-480.0,0.00030009,5]
[364747176,1749227464228,-480.0,0.00030009,5]
[364747177,1749227464237,-482.44,0.00030009,5]
[364747178,1749227464247,-480.0,0.00030009,5]
[364747179,1749227464256,-480.0,0.00030009,5]
[364747180,1749227464265,-480.0,0.00030009,5]
[364747181,1749227464276,-480.0,0.00030009,5]
[364747182,1749227464285,-480.0,0.00030009,5]
[364747183,1749227464295,-480.0,0.00030009,5]
[364747184,1749227464304,-480.0,0.00030009,5]
[364747185,1749227464314,-499.1341257,0.00030009,5]
[364747186,1749227464323,-480.0,0.00030009,5]
[364747187,1749227464333,-480.0,0.00030009,5]
[364747188,1749227464342,-480.0,0.00030009,5]
[364747189,1749227464351,-480.0,0.00030009,5]
[364747190,1749227464362,-480.0,0.00030009,5]
[364747191,1749227464372,-480.0,0.00030009,5]
[364747192,1749227464381,-244.075716,0.00030009,7]
[364747193,1749227464390,-480.0,0.00030009,5]
[364747194,1749227464400,-480.0,0.00030009,5]
[364747195,1749227464409,-480.0,0.00030009,5]
[364747196,1749227464418,-422.92355309,0.00030009,5]
[364747197,1749227464427,-600.0,0.00030009,30]
[364747198,1749227464437,-966.29,0.00030009,5]
[364747199,1749227464446,-480.0,0.00030009,5]
[364747200,1749227464456,-480.0,0.00030009,5]
[364747201,1749227464465,-480.0,0.00030009,5]
[364747202,1749227464475,-151.0,0.00030009,7]
[364747203,1749227464484,-568.18,0.00030009,5]
[364747204,1749227464494,-480.0,0.00030009,5]
[364747205,1749227464504,-480.0,0.00030009,5]
[364747206,1749227464513,-480.0,0.00030009,5]
[364747207,1749227464522,-480.0,0.00030009,5]
[364747208,1749227464532,-480.0,0.00030009,5]
[364747209,1749227464541,-480.0,0.00030009,5]
[364747210,1749227464550,-480.0,0.00030009,5]
[364747211,1749227464559,-389.90276,0.00030009,7]
[364747212,1749227464568,-389.90276,0.00030009,7]
[364747213,1749227464577,-480.0,0.00030009,5]
[364747214,1749227464587,-480.0,0.00030009,5]
[364747215,1749227464596,-740.56,0.00030009,5]
[364747216,1749227464604,-516.62105,0.00030009,7]
[364747217,1749227464615,-516.62105,0.00030009,7]
[364747218,1749227464624,-480.0,0.00030009,5]
[364747219,1749227464634,-511.33,0.00030009,5]
[364747220,1749227464643,-480.0,0.00030009,5]
[364747221,1749227464652,-480.0,0.00030009,5]
[364747222,1749227464662,-281.503758,0.00030009,7]
[364747223,1749227464671,-395.4216793,0.00030009,5]
[364747224,1749227464680,-480.0,0.00030009,5]
[364747225,1749227464690,-480.0,0.00030009,5]
[364747226,1749227464699,-480.0,0.00030009,5]
[364747227,1749227464708,-480.0,0.00030009,5]
[364747228,1749227464718,-480.0,0.00030009,5]
[364747229,1749227464727,-151.0,0.00030009,7]
[364747230,1749227464736,-480.0,0.00030009,5]
[364747231,1749227464745,-480.0,0.00030009,5]
[364747232,1749227464755,-480.0,0.00030009,5]
[364747233,1749227464764,-480.0,0.00030009,5]
[364747234,1749227464774,-213.858254,0.00030009,7]
[364747235,1749227464783,-480.0,0.00030009,5]
[364747236,1749227464793,-213.858254,0.00030009,7]
[364747237,1749227464803,-480.0,0.00030009,5]
[364747238,1749227464815,-480.0,0.00030009,5]
[364747239,1749227464825,-480.0,0.00030009,5]
[364747240,1749227464834,-480.0,0.00030009,5]
[364747241,1749227464844,-480.0,0.00030009,5]
[364747242,1749227464855,-1052.1,0.00030009,5]
[364747243,1749227464865,-480.0,0.00030009,5]
[364747244,1749227464875,-634.64,0.00030009,5]
[364747245,1749227464885,-480.0,0.00030009,5]
[364747246,1749227464895,-1993.76,0.00030009,5]
[364747247,1749227464904,-480.0,0.00030009,5]
[364747248,1749227464914,-202.911024,0.00030009,7]
[364747249,1749227464923,-242.14382186,0.00030009,5]
[364747250,1749227464933,-480.0,0.00030009,5]
[364747251,1749227464942,-468.30249757,0.00030009,5]
[364747252,1749227464952,-5891.5,0.00030009,5]
[364747253,1749227464961,-202.911024,0.00030009,7]
[364747254,1749227464971,-480.0,0.00030009,5]
[364747255,1749227464980,-653.09,0.00030009,5]
[364747256,1749227464990,-535.71,0.00030009,5]
[364747257,1749227464999,-489.78113232,0.00030009,5]
[364747258,1749227465008,-3595.0,0.00030009,5]